[Event "*** Titled Tuesday Blitz"]
[Site "Chess.com"]
[Date "2018.09.04"]
[Round "1"]
[White "AkibaRubi"]
[Black "BigAl"]
[Result "1-0"]
[WhiteElo "2495"]
[BlackElo "2064"]
[TimeControl "180+2"]
[EndTime "13:43:31 PDT"]
[Termination "AkibaRubi won by resignation"]

1. Nf3 {[%clk 0:02:59]} 1... Nf6 {[%clk 0:03:00.5]} 2. b3 {[%clk 0:02:59.5]}
2... g6 {[%clk 0:03:01.3]} 3. Bb2 {[%clk 0:03:00.1]} 3... Bg7 {[%clk 0:03:03.2]}
4. d4 {[%clk 0:03:01.1]} 4... O-O {[%clk 0:03:05.1]} 5. g3 {[%clk 0:03:02.4]}
5... d6 {[%clk 0:03:06]} 6. Bg2 {[%clk 0:03:02.9]} 6... Nbd7 {[%clk 0:03:07.9]}
7. O-O {[%clk 0:03:00.5]} 7... e5 {[%clk 0:03:09]} 8. dxe5 {[%clk 0:03:02.4]}
8... Ng4 {[%clk 0:03:09.8]} 9. c4 {[%clk 0:03:02.5]} 9... Ngxe5 {[%clk
0:03:10.6]} 10. Nc3 {[%clk 0:03:03.1]} 10... a5 {[%clk 0:03:08.6]} 11. Qd2
{[%clk 0:03:03.5]} 11... Nc5 {[%clk 0:03:08.9]} 12. Nxe5 {[%clk 0:02:31.9]}
12... Bxe5 {[%clk 0:03:07.9]} 13. Nd5 {[%clk 0:02:32.1]} 13... c6 {[%clk
0:03:05.1]} 14. Ne3 {[%clk 0:02:30.3]} 14... Qf6 {[%clk 0:03:03.4]} 15. Bxe5
{[%clk 0:02:29.4]} 15... dxe5 {[%clk 0:03:04.2]} 16. Rfd1 {[%clk 0:02:30]} 16...
h5 {[%clk 0:02:56.8]} 17. Qc3 {[%clk 0:02:16.2]} 17... Re8 {[%clk 0:02:47.8]}
18. Rd2 {[%clk 0:02:15.5]} 18... Be6 {[%clk 0:02:25.9]} 19. Rad1 {[%clk
0:02:15.4]} 19... Qg7 {[%clk 0:02:23.5]} 20. Qb2 {[%clk 0:01:54.6]} 20... h4
{[%clk 0:02:22.6]} 21. Qa3 {[%clk 0:01:53.3]} 21... Qf8 {[%clk 0:02:18.1]} 22.
Rd6 {[%clk 0:01:52.5]} 22... Nd7 {[%clk 0:02:17.3]} 23. Qb2 {[%clk 0:01:52.6]}
23... hxg3 {[%clk 0:02:14.3]} 24. hxg3 {[%clk 0:01:51.6]} 24... Qe7 {[%clk
0:02:13.4]} 25. c5 {[%clk 0:01:39.9]} 25... Rad8 {[%clk 0:02:04.2]} 26. Qc3
{[%clk 0:01:39.2]} 26... a4 {[%clk 0:02:02]} 27. bxa4 {[%clk 0:01:23.4]} 27...
Bxa2 {[%clk 0:01:52.8]} 28. Ng4 {[%clk 0:01:24.2]} 28... Be6 {[%clk 0:01:06.7]}
29. Nxe5 {[%clk 0:01:24.5]} 29... Nxe5 {[%clk 0:01:06.7]} 30. Qxe5 {[%clk
0:01:26.3]} 30... Ra8 {[%clk 0:01:06.6]} 31. R1d4 {[%clk 0:01:14.8]} 31... Bb3
{[%clk 0:01:06.2]} 32. Qxe7 {[%clk 0:01:06.7]} 32... Rxe7 {[%clk 0:01:06.6]} 33.
Rd8+ {[%clk 0:01:02.1]} 33... Rxd8 {[%clk 0:01:07.4]} 34. Rxd8+ {[%clk
0:01:03.9]} 34... Kg7 {[%clk 0:01:09.3]} 35. a5 {[%clk 0:01:03.9]} 35... Rxe2
{[%clk 0:01:08.8]} 36. Rd7 {[%clk 0:01:02]} 36... Re1+ {[%clk 0:01:02.3]} 37.
Kh2 {[%clk 0:01:02.5]} 37... Re2 {[%clk 0:01:00.1]} 38. Rxb7 {[%clk 0:00:59.2]}
38... Bc4 {[%clk 0:00:52]} 39. Rb4 {[%clk 0:00:54.4]} 39... Bd3 {[%clk
0:00:48.4]} 40. Bxc6 {[%clk 0:00:41.6]} 40... Rxf2+ {[%clk 0:00:49.4]} 41. Kg1
{[%clk 0:00:43.1]} 41... Rc2 {[%clk 0:00:50.4]} 42. Bb5 {[%clk 0:00:41.8]} 42...
Be4 {[%clk 0:00:46.7]} 43. Rxe4 {[%clk 0:00:42.1]} 43... Rxc5 {[%clk 0:00:48.1]}
44. Rb4 {[%clk 0:00:42.6]} 44... Rc7 {[%clk 0:00:47.8]} 45. a6 {[%clk
0:00:43.5]} 45... Ra7 {[%clk 0:00:48.8]} 46. Rc4 {[%clk 0:00:44.4]} 1-0

[Event "*** Titled Tuesday Blitz"]
[Site "Chess.com"]
[Date "2018.09.04"]
[Round "1"]
[White "RU_B9"]
[Black "SARGISMV"]
[Result "0-1"]
[WhiteElo "1994"]
[BlackElo "2475"]
[TimeControl "180+2"]
[EndTime "13:43:45 PDT"]
[Termination "SARGISMV won by resignation"]

1. c4 {[%clk 0:03:01.9]} 1... c5 {[%clk 0:03:00.7]} 2. Nf3 {[%clk 0:03:01.4]}
2... Nc6 {[%clk 0:03:01.8]} 3. d4 {[%clk 0:03:02.5]} 3... cxd4 {[%clk
0:03:01.1]} 4. Nxd4 {[%clk 0:03:04.4]} 4... Nf6 {[%clk 0:02:55.8]} 5. Nc3 {[%clk
0:03:04.1]} 5... g6 {[%clk 0:02:54.9]} 6. e4 {[%clk 0:03:04.2]} 6... Bg7 {[%clk
0:02:48.3]} 7. Be3 {[%clk 0:03:03.8]} 7... O-O {[%clk 0:02:40.4]} 8. Be2 {[%clk
0:03:03.9]} 8... d6 {[%clk 0:02:40.1]} 9. O-O {[%clk 0:03:02.5]} 9... Bd7 {[%clk
0:02:39.7]} 10. Nc2 {[%clk 0:03:03.2]} 10... Rc8 {[%clk 0:02:38.9]} 11. Qd2
{[%clk 0:02:57.2]} 11... Ng4 {[%clk 0:02:36.6]} 12. Bxg4 {[%clk 0:02:57.5]}
12... Bxg4 {[%clk 0:02:33.3]} 13. f3 {[%clk 0:02:54.6]} 13... Be6 {[%clk
0:02:30.2]} 14. Nd5 {[%clk 0:02:51.3]} 14... Bxb2 {[%clk 0:02:25.6]} 15. Rab1
{[%clk 0:02:48.8]} 15... Bg7 {[%clk 0:02:24.4]} 16. Rxb7 {[%clk 0:02:47.5]}
16... Re8 {[%clk 0:02:24.6]} 17. Nd4 {[%clk 0:01:42.6]} 17... Nxd4 {[%clk
0:02:13]} 18. Bxd4 {[%clk 0:01:44.5]} 18... Rxc4 {[%clk 0:02:14.5]} 19. Bxg7
{[%clk 0:01:41.5]} 19... Kxg7 {[%clk 0:02:15.6]} 20. Rxa7 {[%clk 0:01:29.6]}
20... Bxd5 {[%clk 0:02:15.3]} 21. exd5 {[%clk 0:01:31.5]} 21... Qb6+ {[%clk
0:02:15.6]} 22. Qf2 {[%clk 0:01:32.5]} 22... Qxf2+ {[%clk 0:01:40]} 23. Kxf2
{[%clk 0:01:20.4]} 23... Kf6 {[%clk 0:01:33.6]} 24. Re1 {[%clk 0:01:18.8]} 24...
Rc5 {[%clk 0:01:31]} 25. Rd1 {[%clk 0:01:03]} 25... Rb8 {[%clk 0:01:29.2]} 26.
Kg3 {[%clk 0:01:01.1]} 26... Rb2 {[%clk 0:01:22.1]} 27. Re1 {[%clk 0:00:41.2]}
27... Rxd5 {[%clk 0:01:22.4]} 28. Rexe7 {[%clk 0:00:41]} 28... Rg5+ {[%clk
0:01:22.6]} 29. Kh3 {[%clk 0:00:41.6]} 29... Rgxg2 {[%clk 0:01:11.9]} 30. Rxf7+
{[%clk 0:00:41.3]} 30... Ke5 {[%clk 0:01:12.5]} 31. Ra5+ {[%clk 0:00:34.6]}
31... d5 {[%clk 0:01:09.6]} 32. Re7+ {[%clk 0:00:33.6]} 32... Kd6 {[%clk
0:01:10.1]} 33. Rea7 {[%clk 0:00:32.2]} 33... Rxh2+ {[%clk 0:01:06.4]} 34. Kg3
{[%clk 0:00:32.2]} 34... g5 {[%clk 0:00:54.8]} 35. Kg4 {[%clk 0:00:27.3]} 35...
Ke5 {[%clk 0:00:48.2]} 36. Re7+ {[%clk 0:00:26.4]} 36... Kd4 {[%clk 0:00:48.1]}
37. Kxg5 {[%clk 0:00:25.5]} 37... Rxa2 {[%clk 0:00:47.4]} 38. Rb5 {[%clk
0:00:21.1]} 38... Raf2 {[%clk 0:00:40.1]} 39. Rd7 {[%clk 0:00:20.8]} 39... Rxf3
{[%clk 0:00:38.1]} 40. Rdxd5+ {[%clk 0:00:20.6]} 40... Ke3 {[%clk 0:00:39]} 41.
Re5+ {[%clk 0:00:21.3]} 41... Kf2 {[%clk 0:00:39.2]} 42. Rb2+ {[%clk 0:00:20.5]}
42... Kg3 {[%clk 0:00:40]} 43. Rxh2 {[%clk 0:00:22.1]} 43... Kxh2 {[%clk
0:00:41.1]} 44. Kh6 {[%clk 0:00:23.3]} 44... Rf7 {[%clk 0:00:39.2]} 45. Rg5
{[%clk 0:00:23.8]} 45... Kh3 {[%clk 0:00:38.6]} 46. Rg7 {[%clk 0:00:22.5]} 46...
Rxg7 {[%clk 0:00:38.6]} 47. Kxg7 {[%clk 0:00:20.7]} 47... h5 {[%clk 0:00:40.5]}
48. Kg6 {[%clk 0:00:21.2]} 48... Kg4 {[%clk 0:00:39.9]} 0-1

[Event "*** Titled Tuesday Blitz"]
[Site "Chess.com"]
[Date "2018.09.04"]
[Round "1"]
[White "ViIIagra"]
[Black "Yurovskykh_Oleksandr"]
[Result "0-1"]
[WhiteElo "2791"]
[BlackElo "2431"]
[TimeControl "180+2"]
[EndTime "13:43:51 PDT"]
[Termination "Yurovskykh_Oleksandr won by resignation"]

1. e4 {[%clk 0:03:01.9]} 1... c5 {[%clk 0:02:57.3]} 2. Nf3 {[%clk 0:03:02.9]}
2... g6 {[%clk 0:02:58.1]} 3. d4 {[%clk 0:03:00.1]} 3... cxd4 {[%clk 0:03:00]}
4. Nxd4 {[%clk 0:03:02]} 4... Bg7 {[%clk 0:03:00.1]} 5. c4 {[%clk 0:03:02.8]}
5... Nc6 {[%clk 0:03:01.4]} 6. Be3 {[%clk 0:03:01.2]} 6... Nf6 {[%clk
0:03:02.1]} 7. Nc3 {[%clk 0:03:02.2]} 7... d6 {[%clk 0:03:03.2]} 8. Be2 {[%clk
0:03:01.7]} 8... O-O {[%clk 0:03:03.9]} 9. O-O {[%clk 0:03:02.2]} 9... Bd7
{[%clk 0:03:05.2]} 10. f3 {[%clk 0:03:02.8]} 10... Nxd4 {[%clk 0:02:50.9]} 11.
Bxd4 {[%clk 0:03:04.7]} 11... Bc6 {[%clk 0:02:52.3]} 12. b4 {[%clk 0:03:03.6]}
12... Ne8 {[%clk 0:02:44.2]} 13. Bxg7 {[%clk 0:02:36.6]} 13... Nxg7 {[%clk
0:02:41]} 14. Qd4 {[%clk 0:02:36.3]} 14... Ne6 {[%clk 0:02:39.2]} 15. Qf2 {[%clk
0:02:33.3]} 15... Qb6 {[%clk 0:02:34.9]} 16. Rfb1 {[%clk 0:02:29.7]} 16... Qxf2+
{[%clk 0:02:31.5]} 17. Kxf2 {[%clk 0:02:31.6]} 17... Rfc8 {[%clk 0:02:27.9]} 18.
Ke3 {[%clk 0:02:28.9]} 18... b6 {[%clk 0:02:18.2]} 19. a4 {[%clk 0:02:21.1]}
19... a5 {[%clk 0:02:10.6]} 20. Nd5 {[%clk 0:02:16.8]} 20... Bxd5 {[%clk
0:02:06]} 21. cxd5 {[%clk 0:02:18.7]} 21... Nd8 {[%clk 0:01:59.2]} 22. bxa5
{[%clk 0:02:17.8]} 22... bxa5 {[%clk 0:02:00.7]} 23. Rb5 {[%clk 0:02:19.2]}
23... Rc7 {[%clk 0:01:44.5]} 24. Rab1 {[%clk 0:02:17.5]} 24... Kg7 {[%clk
0:01:44.8]} 25. Bd3 {[%clk 0:02:08.1]} 25... Raa7 {[%clk 0:01:42.5]} 26. Rb8
{[%clk 0:01:49.3]} 26... Nb7 {[%clk 0:01:37.6]} 27. Bb5 {[%clk 0:01:47.7]} 27...
Rc3+ {[%clk 0:01:16.9]} 28. Kf2 {[%clk 0:01:33.5]} 28... Nc5 {[%clk 0:01:13.6]}
29. Ra1 {[%clk 0:01:06.3]} 29... h5 {[%clk 0:01:11.1]} 30. h4 {[%clk 0:01:06.3]}
30... Rc2+ {[%clk 0:00:54.8]} 31. Kg3 {[%clk 0:01:05.3]} 31... Rb2 {[%clk
0:00:56.2]} 32. Rc8 {[%clk 0:00:54.4]} 32... Rb4 {[%clk 0:00:46.2]} 33. Ra3
{[%clk 0:00:40.7]} 33... Kf6 {[%clk 0:00:45.3]} 34. Rf8 {[%clk 0:00:39.4]} 34...
Rc7 {[%clk 0:00:44.7]} 35. Be8 {[%clk 0:00:39.5]} 35... e5 {[%clk 0:00:43.1]}
36. dxe6 {[%clk 0:00:39.4]} 36... Nxe6 {[%clk 0:00:42.5]} 37. Rg8 {[%clk
0:00:40.7]} 37... Rc2 {[%clk 0:00:21.5]} 38. Bd7 {[%clk 0:00:22.7]} 38... Rbb2
{[%clk 0:00:21.8]} 39. Bxe6 {[%clk 0:00:23.9]} 39... Rxg2+ {[%clk 0:00:22.5]}
40. Kf4 {[%clk 0:00:25.3]} 40... fxe6 {[%clk 0:00:21.8]} 41. Rf8+ {[%clk
0:00:14.8]} 41... Ke7 {[%clk 0:00:21.6]} 42. Ra8 {[%clk 0:00:16.7]} 42... Rbe2
{[%clk 0:00:21.5]} 0-1

[Event "*** Titled Tuesday Blitz"]
[Site "Chess.com"]
[Date "2018.09.04"]
[Round "1"]
[White "Der_Honigdachs"]
[Black "GadimbayliA"]
[Result "0-1"]
[WhiteElo "2326"]
[BlackElo "2666"]
[TimeControl "180+2"]
[EndTime "13:43:51 PDT"]
[Termination "GadimbayliA won by checkmate"]

1. d4 {[%clk 0:03:00.7]} 1... Nf6 {[%clk 0:02:59.8]} 2. c4 {[%clk 0:03:01.3]}
2... e6 {[%clk 0:03:00.6]} 3. Nc3 {[%clk 0:03:01.1]} 3... Bb4 {[%clk 0:03:01]}
4. Nf3 {[%clk 0:03:00.5]} 4... b6 {[%clk 0:02:59.3]} 5. e3 {[%clk 0:02:59.1]}
5... Bb7 {[%clk 0:03:00.2]} 6. Bd3 {[%clk 0:03:00.7]} 6... O-O {[%clk
0:03:00.6]} 7. O-O {[%clk 0:03:01.8]} 7... d5 {[%clk 0:03:01.4]} 8. cxd5 {[%clk
0:03:01.1]} 8... exd5 {[%clk 0:03:00.8]} 9. Ne5 {[%clk 0:02:56.8]} 9... Nbd7
{[%clk 0:02:56.6]} 10. f4 {[%clk 0:02:57.4]} 10... c5 {[%clk 0:02:54.2]} 11. Qf3
{[%clk 0:02:52.4]} 11... Bxc3 {[%clk 0:02:52.5]} 12. bxc3 {[%clk 0:02:52.9]}
12... Ne4 {[%clk 0:02:54.1]} 13. c4 {[%clk 0:02:46.1]} 13... Ndf6 {[%clk
0:02:50.6]} 14. Bb2 {[%clk 0:02:28.5]} 14... Rb8 {[%clk 0:02:42.6]} 15. Qh3
{[%clk 0:02:23.8]} 15... dxc4 {[%clk 0:02:38]} 16. Bxc4 {[%clk 0:02:23.7]} 16...
Nd2 {[%clk 0:02:37.8]} 17. Rfd1 {[%clk 0:01:58.2]} 17... Nxc4 {[%clk 0:02:38.6]}
18. dxc5 {[%clk 0:01:45.7]} 18... Nxb2 {[%clk 0:02:02.9]} 19. Rxd8 {[%clk
0:01:45.5]} 19... Rbxd8 {[%clk 0:02:04.8]} 20. c6 {[%clk 0:01:44.2]} 20... Bc8
{[%clk 0:02:05.1]} 21. Qf3 {[%clk 0:01:41.1]} 21... Nd3 {[%clk 0:02:05.5]} 22.
c7 {[%clk 0:01:36.1]} 22... Rd6 {[%clk 0:02:05.9]} 23. e4 {[%clk 0:01:17.9]}
23... Nc5 {[%clk 0:02:03.5]} 24. Re1 {[%clk 0:01:15.2]} 24... Bb7 {[%clk
0:02:02.9]} 25. Qa3 {[%clk 0:01:11]} 25... Ne8 {[%clk 0:00:53]} 26. Qxa7 {[%clk
0:00:31.8]} 26... Nxc7 {[%clk 0:00:52.9]} 27. Qa3 {[%clk 0:00:31.3]} 27... Rd4
{[%clk 0:00:36.4]} 28. Qb2 {[%clk 0:00:29.5]} 28... Rxe4 {[%clk 0:00:33.4]} 29.
Rxe4 {[%clk 0:00:30.4]} 29... Bxe4 {[%clk 0:00:35.3]} 30. Qxb6 {[%clk
0:00:31.5]} 30... N7e6 {[%clk 0:00:36.6]} 31. Nc4 {[%clk 0:00:19.8]} 31... g6
{[%clk 0:00:33.2]} 32. Nd6 {[%clk 0:00:19.8]} 32... Bd5 {[%clk 0:00:33.9]} 33.
f5 {[%clk 0:00:20]} 33... gxf5 {[%clk 0:00:34]} 34. Nxf5 {[%clk 0:00:21.9]}
34... Be4 {[%clk 0:00:31.9]} 35. Ne7+ {[%clk 0:00:20.9]} 35... Kg7 {[%clk
0:00:33.3]} 36. Qd6 {[%clk 0:00:21.9]} 36... f6 {[%clk 0:00:33.7]} 37. h3 {[%clk
0:00:21.1]} 37... Kf7 {[%clk 0:00:34.4]} 38. Nc6 {[%clk 0:00:17.3]} 38... Rc8
{[%clk 0:00:31.6]} 39. Nb4 {[%clk 0:00:14.7]} 39... Rd8 {[%clk 0:00:31.9]} 40.
Qb6 {[%clk 0:00:15.1]} 40... Rd1+ {[%clk 0:00:32]} 41. Kf2 {[%clk 0:00:15.7]}
41... Rd2+ {[%clk 0:00:32.7]} 42. Ke3 {[%clk 0:00:17.3]} 42... Rxg2 {[%clk
0:00:33.8]} 43. Qa7+ {[%clk 0:00:18.7]} 43... Kg6 {[%clk 0:00:34.7]} 44. Qb8
{[%clk 0:00:18.3]} 44... Ng7 {[%clk 0:00:25]} 45. Qc8 {[%clk 0:00:17]} 45...
Nf5+ {[%clk 0:00:25.5]} 46. Kf4 {[%clk 0:00:17.1]} 46... Rf2+ {[%clk 0:00:26.8]}
47. Kg4 {[%clk 0:00:17.4]} 47... h5# {[%clk 0:00:28.3]} 0-1

[Event "*** Titled Tuesday Blitz"]
[Site "Chess.com"]
[Date "2018.09.04"]
[Round "1"]
[White "Margency"]
[Black "FMchesstrainer"]
[Result "1-0"]
[WhiteElo "2695"]
[BlackElo "2343"]
[TimeControl "180+2"]
[EndTime "13:43:56 PDT"]
[Termination "Margency won on time"]

1. e4 {[%clk 0:03:01.9]} 1... c5 {[%clk 0:02:59.5]} 2. Nf3 {[%clk 0:03:02.4]}
2... Nc6 {[%clk 0:03:00.6]} 3. Bb5 {[%clk 0:03:03]} 3... Qc7 {[%clk 0:03:01.4]}
4. O-O {[%clk 0:03:00.6]} 4... a6 {[%clk 0:03:02.1]} 5. Bxc6 {[%clk 0:03:01.1]}
5... Qxc6 {[%clk 0:03:03.4]} 6. d4 {[%clk 0:03:00]} 6... cxd4 {[%clk 0:03:04.1]}
7. Nxd4 {[%clk 0:03:00.7]} 7... Qc7 {[%clk 0:03:05.3]} 8. Nc3 {[%clk 0:03:00.9]}
8... e6 {[%clk 0:03:06.7]} 9. Re1 {[%clk 0:02:59.8]} 9... d6 {[%clk 0:03:06.3]}
10. a4 {[%clk 0:02:48.2]} 10... Be7 {[%clk 0:03:05.3]} 11. Qf3 {[%clk
0:02:45.3]} 11... Nf6 {[%clk 0:03:04.2]} 12. Qg3 {[%clk 0:02:44.7]} 12... O-O
{[%clk 0:03:02.9]} 13. Bh6 {[%clk 0:02:38.7]} 13... Ne8 {[%clk 0:02:48.7]} 14.
Rad1 {[%clk 0:02:34.7]} 14... Kh8 {[%clk 0:02:44.1]} 15. Be3 {[%clk 0:02:18.7]}
15... Nf6 {[%clk 0:02:43.8]} 16. Nb3 {[%clk 0:02:13.8]} 16... b6 {[%clk
0:02:43.1]} 17. Bd4 {[%clk 0:02:08]} 17... Bb7 {[%clk 0:02:42.5]} 18. e5 {[%clk
0:02:05.9]} 18... dxe5 {[%clk 0:02:41.3]} 19. Bxe5 {[%clk 0:02:06.7]} 19... Qc8
{[%clk 0:02:16.1]} 20. Rd4 {[%clk 0:01:58.4]} 20... Kg8 {[%clk 0:01:32.2]} 21.
Red1 {[%clk 0:01:34.8]} 21... g6 {[%clk 0:01:30.1]} 22. R1d3 {[%clk 0:01:24.9]}
22... Nd5 {[%clk 0:01:25.3]} 23. Nxd5 {[%clk 0:00:58.1]} 23... Bxd5 {[%clk
0:01:25.7]} 24. c4 {[%clk 0:00:49.1]} 24... Bc6 {[%clk 0:01:20.5]} 25. Nd2
{[%clk 0:00:41.2]} 25... Qb7 {[%clk 0:01:06.5]} 26. b3 {[%clk 0:00:40.5]} 26...
Rad8 {[%clk 0:01:06.6]} 27. h4 {[%clk 0:00:37.6]} 27... Rxd4 {[%clk 0:01:06.2]}
28. Rxd4 {[%clk 0:00:38.7]} 28... Rd8 {[%clk 0:01:05.1]} 29. h5 {[%clk
0:00:35.9]} 29... Qc8 {[%clk 0:00:35.3]} 30. hxg6 {[%clk 0:00:34.4]} 30... hxg6
{[%clk 0:00:34.9]} 31. Nf1 {[%clk 0:00:24]} 31... Rxd4 {[%clk 0:00:33.1]} 32.
Bxd4 {[%clk 0:00:25.8]} 32... Qd8 {[%clk 0:00:33.8]} 33. Qe5 {[%clk 0:00:25.5]}
33... f6 {[%clk 0:00:26.5]} 34. Qxe6+ {[%clk 0:00:26.5]} 34... Kf8 {[%clk
0:00:27.8]} 35. Bxf6 {[%clk 0:00:22.3]} 35... Bxf6 {[%clk 0:00:26.7]} 36. Qxc6
{[%clk 0:00:23.4]} 36... Qd4 {[%clk 0:00:24.1]} 37. g3 {[%clk 0:00:21.5]} 37...
a5 {[%clk 0:00:24.6]} 38. Ne3 {[%clk 0:00:22.1]} 38... Kg7 {[%clk 0:00:24.8]}
39. Nd5 {[%clk 0:00:21.5]} 39... Qd1+ {[%clk 0:00:23.3]} 40. Kg2 {[%clk
0:00:22.8]} 40... Bd4 {[%clk 0:00:25.2]} 41. Qc7+ {[%clk 0:00:21.6]} 41... Kh6
{[%clk 0:00:25.5]} 42. Qf4+ {[%clk 0:00:22.6]} 42... Kg7 {[%clk 0:00:25.7]} 43.
Ne3 {[%clk 0:00:20.7]} 43... Bc5 {[%clk 0:00:24.9]} 44. Nxd1 {[%clk 0:00:21.3]}
1-0

[Event "*** Titled Tuesday Blitz"]
[Site "Chess.com"]
[Date "2018.09.04"]
[Round "1"]
[White "Caterpiller35"]
[Black "Justmig"]
[Result "0-1"]
[WhiteElo "2286"]
[BlackElo "2623"]
[TimeControl "180+2"]
[EndTime "13:44:00 PDT"]
[Termination "Justmig won by resignation"]

1. d4 {[%clk 0:03:01.8]} 1... d5 {[%clk 0:02:55.4]} 2. Bf4 {[%clk 0:03:02.6]}
2... c5 {[%clk 0:02:53.9]} 3. e3 {[%clk 0:03:03]} 3... Nc6 {[%clk 0:02:54.9]} 4.
c3 {[%clk 0:03:03.7]} 4... Nf6 {[%clk 0:02:54.6]} 5. Nd2 {[%clk 0:03:04.5]} 5...
e6 {[%clk 0:02:55.2]} 6. Bd3 {[%clk 0:03:02]} 6... Bd6 {[%clk 0:02:54.9]} 7. Bg3
{[%clk 0:02:56.9]} 7... Bxg3 {[%clk 0:02:51.9]} 8. hxg3 {[%clk 0:02:57.7]} 8...
e5 {[%clk 0:02:53.5]} 9. dxc5 {[%clk 0:02:55.3]} 9... a5 {[%clk 0:02:42.7]} 10.
Bb5 {[%clk 0:02:52.6]} 10... O-O {[%clk 0:02:41.2]} 11. Ngf3 {[%clk 0:02:50.5]}
11... Qe7 {[%clk 0:02:35.9]} 12. Qa4 {[%clk 0:02:43.8]} 12... Bd7 {[%clk
0:02:25]} 13. e4 {[%clk 0:02:32.4]} 13... Qxc5 {[%clk 0:01:51.6]} 14. exd5
{[%clk 0:02:27.3]} 14... Qxd5 {[%clk 0:01:51.7]} 15. O-O-O {[%clk 0:02:10.9]}
15... Nb4 {[%clk 0:01:10.1]} 16. Bxd7 {[%clk 0:01:50.2]} 16... Nd3+ {[%clk
0:01:07.5]} 17. Kb1 {[%clk 0:01:49.3]} 17... Nxf2 {[%clk 0:00:48.3]} 18. Bf5
{[%clk 0:01:35]} 18... Nxh1 {[%clk 0:00:33.6]} 19. Rxh1 {[%clk 0:01:27.2]} 19...
g6 {[%clk 0:00:30.3]} 20. Ne4 {[%clk 0:01:09.3]} 20... Nxe4 {[%clk 0:00:20.6]}
21. Bxe4 {[%clk 0:01:09.4]} 21... Qd6 {[%clk 0:00:19]} 22. Ng5 {[%clk
0:01:08.2]} 22... h5 {[%clk 0:00:16.3]} 23. Qb3 {[%clk 0:00:18.2]} 23... Kg7
{[%clk 0:00:15.6]} 24. g4 {[%clk 0:00:16.2]} 24... Qf6 {[%clk 0:00:15.9]} 25.
Nf3 {[%clk 0:00:10.2]} 25... hxg4 {[%clk 0:00:16.3]} 26. Nd2 {[%clk 0:00:11.1]}
26... Rh8 {[%clk 0:00:17]} 27. Rf1 {[%clk 0:00:11.3]} 27... Qe7 {[%clk
0:00:17.9]} 28. Qxb7 {[%clk 0:00:09.5]} 28... Qxb7 {[%clk 0:00:17.4]} 29. Bxb7
{[%clk 0:00:11.4]} 29... Rab8 {[%clk 0:00:19.3]} 30. Bd5 {[%clk 0:00:12.2]}
30... f5 {[%clk 0:00:20]} 31. Nc4 {[%clk 0:00:11.5]} 31... e4 {[%clk 0:00:20.4]}
32. g3 {[%clk 0:00:11.2]} 32... Rh3 {[%clk 0:00:20.8]} 33. Ne3 {[%clk 0:00:11]}
33... Rxg3 {[%clk 0:00:20.7]} 34. Nxf5+ {[%clk 0:00:12.2]} 34... gxf5 {[%clk
0:00:21.8]} 35. Rxf5 {[%clk 0:00:14.1]} 35... Rg1+ {[%clk 0:00:22.2]} 36. Kc2
{[%clk 0:00:15]} 36... Rg2+ {[%clk 0:00:22.7]} 37. Kc1 {[%clk 0:00:15.9]} 37...
Rbxb2 {[%clk 0:00:16]} 38. Bxe4 {[%clk 0:00:17]} 38... Rge2 {[%clk 0:00:14.6]}
39. Rxa5 {[%clk 0:00:16]} 39... Rxa2 {[%clk 0:00:10.1]} 40. Rxa2 {[%clk
0:00:16.5]} 40... Rxa2 {[%clk 0:00:12]} 41. c4 {[%clk 0:00:17.8]} 41... Kf6
{[%clk 0:00:11.6]} 42. c5 {[%clk 0:00:18.4]} 42... Ke5 {[%clk 0:00:12.4]} 43. c6
{[%clk 0:00:19.7]} 43... Kxe4 {[%clk 0:00:13.1]} 0-1